[Event "*** SCC Grand Prix: Titled Tuesday Blitz"]
[Site "Chess.com"]
[Date "2020.06.02"]
[Round "3"]
[White "Siniauski"]
[Black "northridgehawk"]
[Result "1-0"]
[WhiteElo "2503"]
[BlackElo "2277"]
[TimeControl "180+1"]
[EndTime "10:28:56 PDT"]
[Termination "Siniauski won on time"]

1. e4 {[%clk 0:03:00.9]} 1... e5 {[%clk 0:02:59.8]} 2. Nf3 {[%clk 0:03:00.6]}
2... Nc6 {[%clk 0:03:00]} 3. Bb5 {[%clk 0:03:00.3]} 3... a6 {[%clk 0:02:59.4]}
4. Ba4 {[%clk 0:03:00.5]} 4... b5 {[%clk 0:02:55.5]} 5. Bb3 {[%clk 0:02:59.3]}
5... Nf6 {[%clk 0:02:55.6]} 6. O-O {[%clk 0:02:58.3]} 6... Bc5 {[%clk
0:02:55.8]} 7. Re1 {[%clk 0:02:54.4]} 7... d6 {[%clk 0:02:52.1]} 8. h3 {[%clk
0:02:51.6]} 8... h6 {[%clk 0:02:48.1]} 9. c3 {[%clk 0:02:51]} 9... Bb6 {[%clk
0:02:45.8]} 10. a4 {[%clk 0:02:38.2]} 10... Rb8 {[%clk 0:02:41.2]} 11. d3 {[%clk
0:02:30.8]} 11... O-O {[%clk 0:02:39]} 12. Nbd2 {[%clk 0:02:29.7]} 12... Be6
{[%clk 0:02:38.2]} 13. Nf1 {[%clk 0:02:22.2]} 13... Re8 {[%clk 0:02:34.2]} 14.
Ng3 {[%clk 0:02:20]} 14... d5 {[%clk 0:02:26.8]} 15. Bc2 {[%clk 0:02:11.5]}
15... d4 {[%clk 0:02:25.4]} 16. Qe2 {[%clk 0:02:08.7]} 16... Qd7 {[%clk
0:02:16.6]} 17. Nh2 {[%clk 0:02:07.9]} 17... dxc3 {[%clk 0:01:49.9]} 18. bxc3
{[%clk 0:02:07]} 18... b4 {[%clk 0:01:50.1]} 19. cxb4 {[%clk 0:01:45]} 19...
Nxb4 {[%clk 0:01:24.6]} 20. Bb1 {[%clk 0:01:44.8]} 20... Bd4 {[%clk 0:01:22.5]}
21. Ra3 {[%clk 0:01:39.4]} 21... c5 {[%clk 0:01:19.4]} 22. Qf3 {[%clk
0:01:20.4]} 22... Nc6 {[%clk 0:01:13.5]} 23. Bxh6 {[%clk 0:01:04.4]} 23... Rb2
{[%clk 0:01:07.5]} 24. Be3 {[%clk 0:00:58.5]} 24... Reb8 {[%clk 0:00:48.8]} 25.
Ra1 {[%clk 0:00:57.9]} 25... R8b3 {[%clk 0:00:25.9]} 26. Ba2 {[%clk 0:00:30.6]}
26... Rxd3 {[%clk 0:00:19.4]} 27. Bxe6 {[%clk 0:00:30.7]} 27... Qxe6 {[%clk
0:00:19.2]} 28. Nf5 {[%clk 0:00:30.9]} 28... g6 {[%clk 0:00:15.3]} 29. Nh6+
{[%clk 0:00:29.4]} 29... Kg7 {[%clk 0:00:15.3]} 30. N6g4 {[%clk 0:00:27.6]}
30... Nh5 {[%clk 0:00:14.7]} 31. Bh6+ {[%clk 0:00:23.8]} 31... Kh7 {[%clk
0:00:14.1]} 32. Qxd3 {[%clk 0:00:23.9]} 32... f5 {[%clk 0:00:14.1]} 33. exf5
{[%clk 0:00:22.8]} 33... gxf5 {[%clk 0:00:15]} 34. Nf3 {[%clk 0:00:20.1]} 34...
Kg8 {[%clk 0:00:10.3]} 35. Nxd4 {[%clk 0:00:17.8]} 35... Nxd4 {[%clk 0:00:09.2]}
36. Rxe5 {[%clk 0:00:17.7]} 36... Qg6 {[%clk 0:00:04.3]} 37. Rae1 {[%clk
0:00:15]} 1-0

[Event "*** SCC Grand Prix: Titled Tuesday Blitz"]
[Site "Chess.com"]
[Date "2020.06.02"]
[Round "3"]
[White "vanyakuba"]
[Black "gemarin"]
[Result "1-0"]
[WhiteElo "2457"]
[BlackElo "2005"]
[TimeControl "180+1"]
[EndTime "10:28:57 PDT"]
[Termination "vanyakuba won on time"]

1. e4 {[%clk 0:02:59.5]} 1... c5 {[%clk 0:02:58.6]} 2. c3 {[%clk 0:02:59.4]}
2... d5 {[%clk 0:02:57.6]} 3. exd5 {[%clk 0:02:59.4]} 3... Qxd5 {[%clk
0:02:57.6]} 4. d4 {[%clk 0:02:59.9]} 4... Nf6 {[%clk 0:02:57.2]} 5. Nf3 {[%clk
0:03:00.2]} 5... Bg4 {[%clk 0:02:56.5]} 6. Be2 {[%clk 0:03:00.4]} 6... e6 {[%clk
0:02:56.2]} 7. h3 {[%clk 0:03:00.8]} 7... Bh5 {[%clk 0:02:55.3]} 8. O-O {[%clk
0:03:01.2]} 8... Nc6 {[%clk 0:02:55.3]} 9. a3 {[%clk 0:03:00.8]} 9... cxd4
{[%clk 0:02:54.1]} 10. cxd4 {[%clk 0:03:01.7]} 10... Be7 {[%clk 0:02:53.3]} 11.
Nc3 {[%clk 0:03:02.2]} 11... Qd8 {[%clk 0:02:52.9]} 12. Be3 {[%clk 0:03:00.2]}
12... O-O {[%clk 0:02:51.8]} 13. Qb3 {[%clk 0:02:56.2]} 13... Na5 {[%clk
0:02:47.9]} 14. Qa4 {[%clk 0:02:54.5]} 14... b6 {[%clk 0:02:45.7]} 15. b4 {[%clk
0:02:50.6]} 15... Nb7 {[%clk 0:02:43.7]} 16. Rac1 {[%clk 0:02:17.8]} 16... Nd6
{[%clk 0:02:42.9]} 17. Rfd1 {[%clk 0:02:11.3]} 17... a5 {[%clk 0:02:39.9]} 18.
b5 {[%clk 0:02:01.4]} 18... Nde4 {[%clk 0:02:21.8]} 19. Nxe4 {[%clk 0:01:53.3]}
19... Nxe4 {[%clk 0:02:21.7]} 20. g4 {[%clk 0:01:38]} 20... Bg6 {[%clk
0:02:20.5]} 21. Ne5 {[%clk 0:01:38.5]} 21... Bf6 {[%clk 0:01:57.2]} 22. Bf3
{[%clk 0:01:36.1]} 22... Qd5 {[%clk 0:01:52.4]} 23. Nxg6 {[%clk 0:01:25]} 23...
fxg6 {[%clk 0:01:50]} 24. Qc2 {[%clk 0:01:24.5]} 24... Qxb5 {[%clk 0:00:39.6]}
25. Qxe4 {[%clk 0:01:23.7]} 25... Rae8 {[%clk 0:00:38.2]} 26. d5 {[%clk
0:01:13.9]} 26... Qb3 {[%clk 0:00:14.3]} 27. dxe6 {[%clk 0:01:01]} 27... Bb2
{[%clk 0:00:13.6]} 28. Qd5 {[%clk 0:00:34.4]} 28... Qxd5 {[%clk 0:00:11.1]} 29.
Bxd5 {[%clk 0:00:34.4]} 29... Bxc1 {[%clk 0:00:10.9]} 30. e7+ {[%clk 0:00:31]}
30... Rf7 {[%clk 0:00:10.9]} 31. Rxc1 {[%clk 0:00:29.5]} 31... h6 {[%clk
0:00:05.4]} 32. Bxb6 {[%clk 0:00:22.2]} 32... a4 {[%clk 0:00:05.6]} 33. Bd8
{[%clk 0:00:19.9]} 33... g5 {[%clk 0:00:02.8]} 34. Rc3 {[%clk 0:00:19.8]} 34...
g6 {[%clk 0:00:02.6]} 35. Rf3 {[%clk 0:00:19.6]} 1-0

[Event "*** SCC Grand Prix: Titled Tuesday Blitz"]
[Site "Chess.com"]
[Date "2020.06.02"]
[Round "3"]
[White "Galileo22"]
[Black "DenisQ"]
[Result "0-1"]
[WhiteElo "2367"]
[BlackElo "2568"]
[TimeControl "180+1"]
[EndTime "10:29:00 PDT"]
[Termination "DenisQ won by resignation"]

1. d4 {[%clk 0:03:00.9]} 1... d5 {[%clk 0:02:59.2]} 2. c4 {[%clk 0:03:00.6]}
2... c6 {[%clk 0:02:57.3]} 3. Nf3 {[%clk 0:03:00.8]} 3... Nf6 {[%clk 0:02:57.4]}
4. Nc3 {[%clk 0:02:59.3]} 4... e6 {[%clk 0:02:56.4]} 5. Bg5 {[%clk 0:02:49]}
5... h6 {[%clk 0:02:55.2]} 6. Bxf6 {[%clk 0:02:39.1]} 6... Qxf6 {[%clk
0:02:56.1]} 7. e3 {[%clk 0:02:35.6]} 7... Nd7 {[%clk 0:02:53.2]} 8. Bd3 {[%clk
0:02:31.2]} 8... g6 {[%clk 0:02:51.1]} 9. O-O {[%clk 0:02:30.4]} 9... dxc4
{[%clk 0:02:50]} 10. Bxc4 {[%clk 0:02:30.2]} 10... Bg7 {[%clk 0:02:50.1]} 11.
Qc2 {[%clk 0:01:59.9]} 11... O-O {[%clk 0:02:48.1]} 12. Rfd1 {[%clk 0:01:48.5]}
12... b6 {[%clk 0:02:40.5]} 13. Ne4 {[%clk 0:01:38.5]} 13... Qe7 {[%clk
0:02:38.7]} 14. Bb3 {[%clk 0:01:35.6]} 14... Bb7 {[%clk 0:02:36.6]} 15. Rac1
{[%clk 0:01:33]} 15... Rac8 {[%clk 0:02:35.8]} 16. Nc3 {[%clk 0:01:30.8]} 16...
Rfd8 {[%clk 0:02:30.5]} 17. a3 {[%clk 0:01:29.7]} 17... c5 {[%clk 0:02:08.9]}
18. d5 {[%clk 0:01:26.1]} 18... c4 {[%clk 0:02:08]} 19. Ba2 {[%clk 0:01:11.1]}
19... Ne5 {[%clk 0:02:05.4]} 20. Nxe5 {[%clk 0:00:57.5]} 20... Bxe5 {[%clk
0:02:06.3]} 21. e4 {[%clk 0:00:41.7]} 21... Bxc3 {[%clk 0:01:59]} 22. Qxc3
{[%clk 0:00:37.4]} 22... exd5 {[%clk 0:01:58.5]} 23. exd5 {[%clk 0:00:36.4]}
23... Bxd5 {[%clk 0:01:57.6]} 24. Bb1 {[%clk 0:00:31.2]} 24... Be6 {[%clk
0:01:54.9]} 25. Re1 {[%clk 0:00:29.2]} 25... Qg5 {[%clk 0:01:45.4]} 26. Rcd1
{[%clk 0:00:24.7]} 26... Rxd1 {[%clk 0:01:42.8]} 27. Rxd1 {[%clk 0:00:25.6]}
27... Rd8 {[%clk 0:01:42.6]} 28. Rxd8+ {[%clk 0:00:22]} 28... Qxd8 {[%clk
0:01:43.5]} 29. Bc2 {[%clk 0:00:21.9]} 29... Qg5 {[%clk 0:01:27.1]} 30. Qe1
{[%clk 0:00:15.6]} 30... Qf6 {[%clk 0:01:24.3]} 31. Qc3 {[%clk 0:00:13.9]} 31...
Qxc3 {[%clk 0:01:23.5]} 32. bxc3 {[%clk 0:00:14.8]} 32... g5 {[%clk 0:01:22.9]}
33. f3 {[%clk 0:00:14.2]} 33... Kg7 {[%clk 0:01:22.6]} 34. Kf2 {[%clk
0:00:14.7]} 34... Kf6 {[%clk 0:01:22.8]} 35. Ke3 {[%clk 0:00:15.2]} 35... Ke5
{[%clk 0:01:21.9]} 36. g3 {[%clk 0:00:15.5]} 36... Bf5 {[%clk 0:01:20.6]} 37.
f4+ {[%clk 0:00:13.5]} 37... gxf4+ {[%clk 0:01:15.9]} 38. gxf4+ {[%clk
0:00:14.4]} 38... Ke6 {[%clk 0:01:15.3]} 39. Ba4 {[%clk 0:00:14.2]} 39... Kd5
{[%clk 0:01:14.3]} 40. Be8 {[%clk 0:00:13.5]} 40... f6 {[%clk 0:01:13.8]} 41.
Bf7+ {[%clk 0:00:13.1]} 41... Kc5 {[%clk 0:01:13.9]} 42. Be8 {[%clk 0:00:11.6]}
42... b5 {[%clk 0:01:13.5]} 43. Kf3 {[%clk 0:00:11.2]} 43... a5 {[%clk
0:01:09.5]} 44. Ke3 {[%clk 0:00:11.7]} 44... Bd3 {[%clk 0:01:07.5]} 45. Kd2
{[%clk 0:00:11.1]} 45... Bf5 {[%clk 0:01:02.9]} 46. Bf7 {[%clk 0:00:09.1]} 46...
b4 {[%clk 0:01:02.6]} 47. axb4+ {[%clk 0:00:09]} 47... axb4 {[%clk 0:01:03.5]}
48. cxb4+ {[%clk 0:00:09.1]} 48... Kxb4 {[%clk 0:01:04.4]} 49. Bd5 {[%clk
0:00:06.4]} 49... c3+ {[%clk 0:01:04]} 50. Kc1 {[%clk 0:00:06.2]} 50... Kc5
{[%clk 0:01:03.7]} 51. Bf7 {[%clk 0:00:05.7]} 51... Kd4 {[%clk 0:01:03.8]} 52.
Be8 {[%clk 0:00:03]} 52... Ke3 {[%clk 0:01:01.3]} 53. Bc6 {[%clk 0:00:03.4]}
53... Kxf4 {[%clk 0:01:01.2]} 54. Kd1 {[%clk 0:00:03.6]} 54... Ke3 {[%clk
0:01:01.2]} 55. Kc1 {[%clk 0:00:03.7]} 55... Bd3 {[%clk 0:01:01.3]} 56. Kd1
{[%clk 0:00:01.7]} 56... f5 {[%clk 0:01:01.5]} 57. Kc1 {[%clk 0:00:02.6]} 57...
f4 {[%clk 0:01:01.6]} 58. Kd1 {[%clk 0:00:03.5]} 0-1

[Event "*** SCC Grand Prix: Titled Tuesday Blitz"]
[Site "Chess.com"]
[Date "2020.06.02"]
[Round "3"]
[White "wild_cat99"]
[Black "frankshar"]
[Result "1-0"]
[WhiteElo "2574"]
[BlackElo "2371"]
[TimeControl "180+1"]
[EndTime "10:29:02 PDT"]
[Termination "wild_cat99 won on time"]

1. Nf3 {[%clk 0:03:00.9]} 1... Nf6 {[%clk 0:02:59.7]} 2. c4 {[%clk 0:02:59.9]}
2... e6 {[%clk 0:02:59.7]} 3. e3 {[%clk 0:02:58.8]} 3... d5 {[%clk 0:02:59.5]}
4. b3 {[%clk 0:02:58.9]} 4... c5 {[%clk 0:02:57.3]} 5. Bb2 {[%clk 0:02:55.4]}
5... Nc6 {[%clk 0:02:54.9]} 6. cxd5 {[%clk 0:02:41.7]} 6... exd5 {[%clk
0:02:52]} 7. d4 {[%clk 0:02:41.7]} 7... Be7 {[%clk 0:02:44.5]} 8. Be2 {[%clk
0:02:36.4]} 8... O-O {[%clk 0:02:42.8]} 9. O-O {[%clk 0:02:36]} 9... Bg4 {[%clk
0:02:37.4]} 10. Nbd2 {[%clk 0:02:26.4]} 10... Re8 {[%clk 0:02:18.8]} 11. Rc1
{[%clk 0:02:24.1]} 11... cxd4 {[%clk 0:02:06.9]} 12. Nxd4 {[%clk 0:02:25]} 12...
Bxe2 {[%clk 0:02:05.4]} 13. Qxe2 {[%clk 0:02:25.9]} 13... Rc8 {[%clk 0:02:00.3]}
14. Rfd1 {[%clk 0:02:25.6]} 14... Bd6 {[%clk 0:01:48.5]} 15. Nf5 {[%clk
0:02:21]} 15... Be5 {[%clk 0:01:28.7]} 16. Bxe5 {[%clk 0:02:20.2]} 16... Rxe5
{[%clk 0:01:28]} 17. Qf3 {[%clk 0:02:12.9]} 17... Qf8 {[%clk 0:00:58.8]} 18. Qf4
{[%clk 0:02:00]} 18... Rce8 {[%clk 0:00:53.3]} 19. Nf3 {[%clk 0:01:55.2]} 19...
Re4 {[%clk 0:00:49.8]} 20. Qd6 {[%clk 0:01:54.5]} 20... R8e6 {[%clk 0:00:43.9]}
21. Qxf8+ {[%clk 0:01:49.4]} 21... Kxf8 {[%clk 0:00:44.8]} 22. Ng5 {[%clk
0:01:50.2]} 22... Rb4 {[%clk 0:00:25.8]} 23. Nxe6+ {[%clk 0:01:49.9]} 23... fxe6
{[%clk 0:00:26.7]} 24. Nd6 {[%clk 0:01:49.9]} 24... Ne4 {[%clk 0:00:13.6]} 25.
Nxb7 {[%clk 0:01:47.6]} 25... Ne5 {[%clk 0:00:13.5]} 26. Rc8+ {[%clk 0:01:42.4]}
26... Ke7 {[%clk 0:00:13.2]} 27. Rc7+ {[%clk 0:01:42.4]} 27... Kf6 {[%clk
0:00:13]} 28. Nc5 {[%clk 0:01:36.9]} 28... Nc3 {[%clk 0:00:10.9]} 29. Rf1 {[%clk
0:01:28.4]} 29... Nb5 {[%clk 0:00:09.3]} 30. Rb7 {[%clk 0:01:19]} 30... Nc6
{[%clk 0:00:07.2]} 31. a4 {[%clk 0:01:15.3]} 31... Nc3 {[%clk 0:00:04.8]} 32.
Rxb4 {[%clk 0:01:14.4]} 32... Nxb4 {[%clk 0:00:05.7]} 33. f4 {[%clk 0:01:06.5]}
33... Ke7 {[%clk 0:00:04.6]} 34. Kf2 {[%clk 0:01:04.7]} 34... Kd6 {[%clk
0:00:04.9]} 35. Nb7+ {[%clk 0:00:40.4]} 35... Kc7 {[%clk 0:00:03.4]} 36. Nc5
{[%clk 0:00:36.2]} 36... Kd6 {[%clk 0:00:03.3]} 37. Rc1 {[%clk 0:00:34.4]} 37...
Nba2 {[%clk 0:00:02.8]} 38. Rxc3 {[%clk 0:00:24.6]} 38... Nxc3 {[%clk
0:00:03.7]} 39. Nd3 {[%clk 0:00:25.3]} 39... Ne4+ {[%clk 0:00:04]} 40. Ke1
{[%clk 0:00:25]} 40... g6 {[%clk 0:00:02.4]} 41. Kd1 {[%clk 0:00:13.8]} 1-0

[Event "*** SCC Grand Prix: Titled Tuesday Blitz"]
[Site "Chess.com"]
[Date "2020.06.02"]
[Round "3"]
[White "gena217"]
[Black "Pomegranate988"]
[Result "1-0"]
[WhiteElo "2846"]
[BlackElo "2549"]
[TimeControl "180+1"]
[EndTime "10:29:03 PDT"]
[Termination "gena217 won by checkmate"]

1. e4 {[%clk 0:03:00.9]} 1... c6 {[%clk 0:02:59.3]} 2. d4 {[%clk 0:03:00.8]}
2... d5 {[%clk 0:02:59.2]} 3. e5 {[%clk 0:02:59.8]} 3... Bf5 {[%clk 0:02:58.9]}
4. h4 {[%clk 0:02:54.4]} 4... h5 {[%clk 0:02:57.5]} 5. Bg5 {[%clk 0:02:50.6]}
5... Qb6 {[%clk 0:02:55.9]} 6. Bd3 {[%clk 0:02:49.5]} 6... Qxd4 {[%clk
0:02:54.7]} 7. Nf3 {[%clk 0:02:48.3]} 7... Qg4 {[%clk 0:02:54.8]} 8. Bxf5 {[%clk
0:02:48.5]} 8... Qxf5 {[%clk 0:02:54.6]} 9. O-O {[%clk 0:02:48.9]} 9... e6
{[%clk 0:02:51.6]} 10. c4 {[%clk 0:02:48.2]} 10... Nd7 {[%clk 0:02:28.5]} 11.
cxd5 {[%clk 0:02:45.3]} 11... cxd5 {[%clk 0:02:14.5]} 12. Nc3 {[%clk 0:02:37]}
12... a6 {[%clk 0:02:06]} 13. Rc1 {[%clk 0:02:34.9]} 13... Ne7 {[%clk
0:01:59.1]} 14. Nd4 {[%clk 0:02:34]} 14... Qxe5 {[%clk 0:01:43.3]} 15. Re1
{[%clk 0:02:33.3]} 15... Qb8 {[%clk 0:01:05.8]} 16. Qf3 {[%clk 0:02:25.9]} 16...
Ne5 {[%clk 0:00:58]} 17. Qe2 {[%clk 0:02:23.2]} 17... N5c6 {[%clk 0:00:54.9]}
18. Nxe6 {[%clk 0:01:59.1]} 18... fxe6 {[%clk 0:00:50.9]} 19. Qxe6 {[%clk
0:02:00]} 19... Qc8 {[%clk 0:00:39.1]} 20. Qg6+ {[%clk 0:01:31.8]} 20... Kd7
{[%clk 0:00:38.9]} 21. Qe6+ {[%clk 0:01:29.7]} 21... Ke8 {[%clk 0:00:38.8]} 22.
Qg6+ {[%clk 0:01:17.6]} 22... Kd7 {[%clk 0:00:38.8]} 23. Qe6+ {[%clk 0:01:15.9]}
23... Ke8 {[%clk 0:00:38.9]} 24. Qe2 {[%clk 0:01:05.7]} 24... Qf5 {[%clk
0:00:37.1]} 25. Rcd1 {[%clk 0:00:40]} 25... Rd8 {[%clk 0:00:35.1]} 26. Rd3
{[%clk 0:00:37.3]} 26... d4 {[%clk 0:00:33.3]} 27. Rf3 {[%clk 0:00:32.1]} 27...
Qg6 {[%clk 0:00:28.1]} 28. Rxf8+ {[%clk 0:00:25.8]} 28... Rxf8 {[%clk
0:00:18.7]} 29. Bxe7 {[%clk 0:00:26.3]} 29... dxc3 {[%clk 0:00:12.6]} 30. Bf6+
{[%clk 0:00:09.3]} 30... Kf7 {[%clk 0:00:10.9]} 31. Qe6# {[%clk 0:00:09.1]} 1-0

[Event "*** SCC Grand Prix: Titled Tuesday Blitz"]
[Site "Chess.com"]
[Date "2020.06.02"]
[Round "3"]
[White "chessablanca"]
[Black "Aygehovit1992"]
[Result "0-1"]
[WhiteElo "2437"]
[BlackElo "2725"]
[TimeControl "180+1"]
[EndTime "10:29:04 PDT"]
[Termination "Aygehovit1992 won by checkmate"]

1. Nf3 {[%clk 0:03:00.9]} 1... g6 {[%clk 0:02:59.5]} 2. g3 {[%clk 0:03:00]} 2...
Bg7 {[%clk 0:02:59.8]} 3. Bg2 {[%clk 0:03:00.6]} 3... e5 {[%clk 0:02:59.8]} 4.
O-O {[%clk 0:03:01.2]} 4... d5 {[%clk 0:03:00.1]} 5. d3 {[%clk 0:03:01.3]} 5...
Nc6 {[%clk 0:03:00.2]} 6. c4 {[%clk 0:03:00.3]} 6... d4 {[%clk 0:02:59.6]} 7.
Nbd2 {[%clk 0:02:49.7]} 7... Nge7 {[%clk 0:02:58.1]} 8. Rb1 {[%clk 0:02:41.9]}
8... a5 {[%clk 0:02:57.7]} 9. a3 {[%clk 0:02:41.9]} 9... a4 {[%clk 0:02:58]} 10.
b4 {[%clk 0:02:42.5]} 10... axb3 {[%clk 0:02:58]} 11. Nxb3 {[%clk 0:02:42.8]}
11... O-O {[%clk 0:02:58.5]} 12. e3 {[%clk 0:02:31.9]} 12... dxe3 {[%clk
0:02:54.8]} 13. fxe3 {[%clk 0:02:32.8]} 13... b6 {[%clk 0:02:39.9]} 14. Bb2
{[%clk 0:02:23.5]} 14... Bf5 {[%clk 0:02:25.6]} 15. Ne1 {[%clk 0:02:18.6]} 15...
Qd7 {[%clk 0:02:19.4]} 16. Qe2 {[%clk 0:01:49.9]} 16... Rfd8 {[%clk 0:02:08.3]}
17. Rd1 {[%clk 0:01:49.9]} 17... Bg4 {[%clk 0:01:51.4]} 18. Bf3 {[%clk
0:01:43.1]} 18... Bxf3 {[%clk 0:01:48.8]} 19. Nxf3 {[%clk 0:01:43.8]} 19... Qg4
{[%clk 0:01:39.8]} 20. Qf2 {[%clk 0:00:58.1]} 20... e4 {[%clk 0:01:37.9]} 21.
Bxg7 {[%clk 0:00:46.2]} 21... Kxg7 {[%clk 0:01:37.5]} 22. Nfd2 {[%clk
0:00:35.3]} 22... f5 {[%clk 0:01:22.9]} 23. dxe4 {[%clk 0:00:25.4]} 23... Rxa3
{[%clk 0:01:21]} 24. exf5 {[%clk 0:00:23.5]} 24... Qxf5 {[%clk 0:01:08.9]} 25.
Qe2 {[%clk 0:00:21.1]} 25... Qd3 {[%clk 0:01:03.4]} 26. Qf3 {[%clk 0:00:21.4]}
26... Qf5 {[%clk 0:00:53.3]} 27. Qg2 {[%clk 0:00:21.1]} 27... Qe6 {[%clk
0:00:49.7]} 28. Nc1 {[%clk 0:00:14.2]} 28... Rxe3 {[%clk 0:00:46.1]} 29. Kh1
{[%clk 0:00:12.8]} 29... Nf5 {[%clk 0:00:44.2]} 30. g4 {[%clk 0:00:10.5]} 30...
Nh4 {[%clk 0:00:37.2]} 31. Qf2 {[%clk 0:00:10.7]} 31... g5 {[%clk 0:00:21.9]}
32. Rfe1 {[%clk 0:00:06.4]} 32... Rxe1+ {[%clk 0:00:18.5]} 33. Rxe1 {[%clk
0:00:07.3]} 33... Qxg4 {[%clk 0:00:16.2]} 34. Rg1 {[%clk 0:00:05.6]} 34... Rxd2
{[%clk 0:00:11.8]} 35. Rxg4 {[%clk 0:00:01]} 35... Rxf2 {[%clk 0:00:11.1]} 36.
Rxg5+ {[%clk 0:00:01.9]} 36... Kf6 {[%clk 0:00:10.9]} 37. Rg1 {[%clk 0:00:02.1]}
37... Nf3 {[%clk 0:00:10.5]} 38. Rd1 {[%clk 0:00:01.4]} 38... Rxh2# {[%clk
0:00:10.1]} 0-1

[Event "*** SCC Grand Prix: Titled Tuesday Blitz"]
[Site "Chess.com"]
[Date "2020.06.02"]
[Round "3"]
[White "fischercapa"]
[Black "AleksanderHnydiuk"]
[Result "0-1"]
[WhiteElo "2364"]
[BlackElo "2565"]
[TimeControl "180+1"]
[EndTime "10:29:04 PDT"]
[Termination "AleksanderHnydiuk won on time"]

1. e4 {[%clk 0:03:00.6]} 1... c5 {[%clk 0:02:59.7]} 2. Nf3 {[%clk 0:02:59.3]}
2... e6 {[%clk 0:02:58.8]} 3. d4 {[%clk 0:02:58.9]} 3... cxd4 {[%clk 0:02:59.7]}
4. Nxd4 {[%clk 0:02:59.1]} 4... Nc6 {[%clk 0:03:00]} 5. Nc3 {[%clk 0:02:53]}
5... a6 {[%clk 0:02:59.7]} 6. g3 {[%clk 0:02:52.2]} 6... d6 {[%clk 0:02:50.4]}
7. Bg2 {[%clk 0:02:50]} 7... Bd7 {[%clk 0:02:46.5]} 8. O-O {[%clk 0:02:48.5]}
8... Nf6 {[%clk 0:02:46.6]} 9. a4 {[%clk 0:01:33.8]} 9... Be7 {[%clk 0:02:46.2]}
10. Nb3 {[%clk 0:01:29.1]} 10... Na5 {[%clk 0:02:39.1]} 11. h3 {[%clk 0:01:25]}
11... O-O {[%clk 0:02:38]} 12. f4 {[%clk 0:01:21.4]} 12... Nxb3 {[%clk
0:02:33.5]} 13. cxb3 {[%clk 0:01:21.4]} 13... Bc6 {[%clk 0:02:33.1]} 14. Kh2
{[%clk 0:01:19]} 14... d5 {[%clk 0:02:20.8]} 15. e5 {[%clk 0:01:06.8]} 15... Nd7
{[%clk 0:02:15.9]} 16. Be3 {[%clk 0:01:00.6]} 16... Qa5 {[%clk 0:02:09.8]} 17.
Ne2 {[%clk 0:00:54.8]} 17... Rac8 {[%clk 0:01:50.9]} 18. Nd4 {[%clk 0:00:49.9]}
18... Bc5 {[%clk 0:01:47.5]} 19. Qd3 {[%clk 0:00:37.2]} 19... Rfe8 {[%clk
0:01:38.5]} 20. Rfc1 {[%clk 0:00:30]} 20... Qb6 {[%clk 0:01:30.2]} 21. a5 {[%clk
0:00:23.6]} 21... Qa7 {[%clk 0:01:30.2]} 22. b4 {[%clk 0:00:22.3]} 22... Bxd4
{[%clk 0:01:25.7]} 23. Bxd4 {[%clk 0:00:21]} 23... Qb8 {[%clk 0:01:23.7]} 24.
Qe3 {[%clk 0:00:15.3]} 24... Bb5 {[%clk 0:01:16.4]} 25. Rc3 {[%clk 0:00:14.7]}
25... Rxc3 {[%clk 0:01:13.8]} 26. bxc3 {[%clk 0:00:15.1]} 26... Qc7 {[%clk
0:01:13.4]} 27. h4 {[%clk 0:00:13.5]} 27... Qc4 {[%clk 0:01:07.6]} 28. Bh3
{[%clk 0:00:08.5]} 28... Nb8 {[%clk 0:01:04.5]} 29. Bf1 {[%clk 0:00:07.3]} 29...
Qc6 {[%clk 0:01:03.7]} 30. Bg2 {[%clk 0:00:06.3]} 30... Nd7 {[%clk 0:01:02.1]}
31. g4 {[%clk 0:00:06]} 31... Qc4 {[%clk 0:00:55.8]} 32. Bf1 {[%clk 0:00:06.6]}
32... Qc6 {[%clk 0:00:55.6]} 33. Bg2 {[%clk 0:00:05.4]} 33... f6 {[%clk
0:00:45]} 34. exf6 {[%clk 0:00:03.8]} 34... Nxf6 {[%clk 0:00:45.1]} 35. Re1
{[%clk 0:00:04.1]} 35... Nxg4+ {[%clk 0:00:42.1]} 36. Kg3 {[%clk 0:00:04.6]}
36... Nxe3 {[%clk 0:00:42]} 37. Rxe3 {[%clk 0:00:05.5]} 37... Qc4 {[%clk
0:00:31.9]} 0-1

[Event "*** SCC Grand Prix: Titled Tuesday Blitz"]
[Site "Chess.com"]
[Date "2020.06.02"]
[Round "3"]
[White "Azatic"]
[Black "PowerThinking2650"]
[Result "1-0"]
[WhiteElo "2438"]
[BlackElo "2254"]
[TimeControl "180+1"]
[EndTime "10:29:04 PDT"]
[Termination "Azatic won on time"]

1. e4 {[%clk 0:03:00.9]} 1... e5 {[%clk 0:02:59.7]} 2. Nf3 {[%clk 0:03:01]} 2...
Nc6 {[%clk 0:02:59.4]} 3. Bb5 {[%clk 0:03:01.3]} 3... a6 {[%clk 0:02:55.6]} 4.
Ba4 {[%clk 0:03:01.5]} 4... Nf6 {[%clk 0:02:55]} 5. O-O {[%clk 0:03:01.3]} 5...
Be7 {[%clk 0:02:52.1]} 6. Re1 {[%clk 0:03:01.5]} 6... b5 {[%clk 0:02:51.8]} 7.
Bb3 {[%clk 0:03:01.5]} 7... d6 {[%clk 0:02:52.1]} 8. c3 {[%clk 0:03:00.9]} 8...
O-O {[%clk 0:02:51.4]} 9. d4 {[%clk 0:03:01]} 9... Bg4 {[%clk 0:02:48.9]} 10.
Be3 {[%clk 0:03:01]} 10... exd4 {[%clk 0:02:46]} 11. cxd4 {[%clk 0:03:01.9]}
11... d5 {[%clk 0:02:43.5]} 12. e5 {[%clk 0:03:01.7]} 12... Ne4 {[%clk
0:02:41.9]} 13. Nc3 {[%clk 0:03:01.3]} 13... Nxc3 {[%clk 0:02:39.3]} 14. bxc3
{[%clk 0:03:02.2]} 14... Qd7 {[%clk 0:02:37.8]} 15. Bc2 {[%clk 0:02:47.3]} 15...
Bf5 {[%clk 0:02:17]} 16. Bg5 {[%clk 0:02:44.3]} 16... Bxc2 {[%clk 0:02:01.8]}
17. Qxc2 {[%clk 0:02:45.2]} 17... Nd8 {[%clk 0:01:52.9]} 18. h4 {[%clk
0:02:37.2]} 18... Ne6 {[%clk 0:01:50.3]} 19. g3 {[%clk 0:02:37.1]} 19... Rae8
{[%clk 0:01:14.4]} 20. Kg2 {[%clk 0:02:35.9]} 20... Bxg5 {[%clk 0:00:51.9]} 21.
hxg5 {[%clk 0:02:33.8]} 21... Nf4+ {[%clk 0:00:48.4]} 22. gxf4 {[%clk
0:01:52.8]} 22... Qg4+ {[%clk 0:00:47.9]} 23. Kf1 {[%clk 0:01:53.3]} 23... Qxf3
{[%clk 0:00:46.4]} 24. Qd2 {[%clk 0:01:48.4]} 24... f6 {[%clk 0:00:32.8]} 25.
gxf6 {[%clk 0:01:44.8]} 25... Rxf6 {[%clk 0:00:23.9]} 26. Re3 {[%clk 0:01:10.2]}
26... Qh1+ {[%clk 0:00:23.4]} 27. Ke2 {[%clk 0:01:10.4]} 27... Qh5+ {[%clk
0:00:15.4]} 28. Rf3 {[%clk 0:01:03.9]} 28... Rf5 {[%clk 0:00:15.1]} 29. Rg1
{[%clk 0:00:26.1]} 29... Ref8 {[%clk 0:00:12.6]} 30. Ke3 {[%clk 0:00:25.5]}
30... g6 {[%clk 0:00:08.9]} 31. Rgg3 {[%clk 0:00:13.3]} 31... c6 {[%clk
0:00:06.1]} 32. Kd3 {[%clk 0:00:11.1]} 32... Qh4 {[%clk 0:00:03.9]} 33. Kc2
{[%clk 0:00:10.3]} 33... Rxf4 {[%clk 0:00:02.7]} 34. Rxf4 {[%clk 0:00:09.5]}
34... Qxf4 {[%clk 0:00:02.4]} 35. Re3 {[%clk 0:00:08.6]} 35... Qxf2 {[%clk
0:00:01.5]} 36. Re2 {[%clk 0:00:09]} 36... Qf5+ {[%clk 0:00:01.1]} 37. Kb2
{[%clk 0:00:09.4]} 1-0